[Event "Titled Tuesday Blitz September 13 Early 2022"]
[White "Ibrahimli, Murad"]
[Black "Janaszak, Dawid"]
[WhiteFideId "13410229"]
[BlackFideId "1119206"]
[WhiteElo "2109"]
[BlackElo "2165"]
[Result "1-0"]
[Round "02"]
[TimeControl "180+1"]
[Date "2022.09.13"]
[WhiteClock "0:01:18"]
[BlackClock "0:00:18"]

1. d4 {[%clk 0:03:00]}  d5 {[%clk 0:02:58]} 2. c4 {[%clk 0:03:00]}  c6 {[%clk 0:02:59]} 3. Nf3 {[%clk 0:02:59]}  Nf6 {[%clk 0:02:58]} 4. Nc3 {[%clk 0:03:00]}  e6 {[%clk 0:02:57]} 5. e3 {[%clk 0:02:58]}  Nbd7 {[%clk 0:02:56]} 6. Qc2 {[%clk 0:02:58]}  Bd6 {[%clk 0:02:57]} 7. Bd3 {[%clk 0:02:58]}  O-O {[%clk 0:02:56]} 8. O-O {[%clk 0:02:58]}  dxc4 {[%clk 0:02:56]} 9. Bxc4 {[%clk 0:02:59]}  b5 {[%clk 0:02:56]} 10. Be2 {[%clk 0:02:59]}  Bb7 {[%clk 0:02:54]} 11. e4 {[%clk 0:03:00]}  e5 {[%clk 0:02:54]} 12. dxe5 {[%clk 0:03:01]}  Nxe5 {[%clk 0:02:54]} 13. Nd4 {[%clk 0:03:01]}  b4 {[%clk 0:02:34]} 14. Nf5 {[%clk 0:02:21]}  bxc3 {[%clk 0:02:09]} 15. Rd1 {[%clk 0:02:20]}  Nd5 {[%clk 0:01:32]} 16. exd5 {[%clk 0:02:06]}  cxd5 {[%clk 0:01:32]} 17. Nxd6 {[%clk 0:02:05]}  Qxd6 {[%clk 0:01:30]} 18. Qxc3 {[%clk 0:02:05]}  Rac8 {[%clk 0:01:23]} 19. Qg3 {[%clk 0:02:04]}  Rc2 {[%clk 0:01:17]} 20. Bf1 {[%clk 0:01:58]}  Re8 {[%clk 0:01:00]} 21. b3 {[%clk 0:01:51]}  Qg6 {[%clk 0:00:57]} 22. Bf4 {[%clk 0:01:48]}  Qxg3 {[%clk 0:00:55]} 23. Bxg3 {[%clk 0:01:49]}  f6 {[%clk 0:00:53]} 24. f3 {[%clk 0:01:43]}  Rec8 {[%clk 0:00:50]} 25. Bf2 {[%clk 0:01:40]}  a5 {[%clk 0:00:49]} 26. h3 {[%clk 0:01:33]}  Kf7 {[%clk 0:00:49]} 27. Bb6 {[%clk 0:01:24]}  a4 {[%clk 0:00:38]} 28. bxa4 {[%clk 0:01:24]}  Nc4 {[%clk 0:00:39]} 29. Bd4 {[%clk 0:01:23]}  Bc6 {[%clk 0:00:36]} 30. Bd3 {[%clk 0:01:22]}  Rd2 {[%clk 0:00:36]} 31. Rxd2 {[%clk 0:01:22]}  Nxd2 {[%clk 0:00:37]} 32. a5 {[%clk 0:01:22]}  Nc4 {[%clk 0:00:36]} 33. a6 {[%clk 0:01:22]}  Bb5 {[%clk 0:00:31]} 34. a7 {[%clk 0:01:22]}  Ke6 {[%clk 0:00:26]} 35. a4 {[%clk 0:01:20]}  Ba6 {[%clk 0:00:26]} 36. Re1+ {[%clk 0:01:17]}  Kd6 {[%clk 0:00:24]} 37. Bf5 {[%clk 0:01:17]}  Rd8 {[%clk 0:00:18]} 38. Re6+ {[%clk 0:01:18]} 1-0


[Site "https://www.chess.com"]

[Event "Titled Tuesday Blitz September 13 Early 2022"]
[White "Kollars, Dmitrij"]
[Black "Pinheiro, Iung Alicio de O."]
[WhiteFideId "12909572"]
[BlackFideId "2104350"]
[WhiteElo "2584"]
[BlackElo "2283"]
[Result "0-1"]
[Round "02"]
[TimeControl "180+1"]
[Date "2022.09.13"]
[WhiteClock "0:00:06"]
[BlackClock "0:00:18"]

1. Nf3 {[%clk 0:03:00]}  d5 {[%clk 0:02:56]} 2. c4 {[%clk 0:02:59]}  c6 {[%clk 0:02:56]} 3. b3 {[%clk 0:02:56]}  Nf6 {[%clk 0:02:53]} 4. Bb2 {[%clk 0:02:56]}  Bf5 {[%clk 0:02:53]} 5. g3 {[%clk 0:02:54]}  e6 {[%clk 0:02:53]} 6. Bg2 {[%clk 0:02:54]}  Nbd7 {[%clk 0:02:52]} 7. O-O {[%clk 0:02:53]}  Be7 {[%clk 0:02:46]} 8. d3 {[%clk 0:02:53]}  h6 {[%clk 0:02:46]} 9. Nbd2 {[%clk 0:02:52]}  O-O {[%clk 0:02:46]} 10. Re1 {[%clk 0:02:40]}  Bh7 {[%clk 0:02:45]} 11. Rc1 {[%clk 0:02:39]}  a5 {[%clk 0:02:45]} 12. a3 {[%clk 0:02:39]}  Qb8 {[%clk 0:02:39]} 13. Rc2 {[%clk 0:02:34]}  e5 {[%clk 0:02:32]} 14. e4 {[%clk 0:02:31]}  d4 {[%clk 0:02:11]} 15. Bh3 {[%clk 0:02:26]}  Nc5 {[%clk 0:02:02]} 16. Qe2 {[%clk 0:02:16]}  Ne6 {[%clk 0:01:45]} 17. Nh4 {[%clk 0:02:10]}  Re8 {[%clk 0:01:36]} 18. Ndf3 {[%clk 0:02:05]}  Bf8 {[%clk 0:01:28]} 19. Bf5 {[%clk 0:01:23]}  g6 {[%clk 0:01:21]} 20. Bxe6 {[%clk 0:01:23]}  Rxe6 {[%clk 0:01:16]} 21. Bc1 {[%clk 0:01:24]}  Re8 {[%clk 0:01:08]} 22. Kh1 {[%clk 0:01:17]}  g5 {[%clk 0:01:05]} 23. Nf5 {[%clk 0:01:12]}  Bxf5 {[%clk 0:01:05]} 24. exf5 {[%clk 0:01:13]}  e4 {[%clk 0:01:04]} 25. dxe4 {[%clk 0:01:05]}  Rxe4 {[%clk 0:00:54]} 26. Qd3 {[%clk 0:01:05]}  Rxe1+ {[%clk 0:00:52]} 27. Nxe1 {[%clk 0:01:06]}  c5 {[%clk 0:00:47]} 28. Qf3 {[%clk 0:01:00]}  Qc7 {[%clk 0:00:43]} 29. Re2 {[%clk 0:00:57]}  a4 {[%clk 0:00:41]} 30. Kg1 {[%clk 0:00:38]}  axb3 {[%clk 0:00:39]} 31. Qxb3 {[%clk 0:00:39]}  Qd7 {[%clk 0:00:34]} 32. Qf3 {[%clk 0:00:32]}  Ra4 {[%clk 0:00:32]} 33. Qb3 {[%clk 0:00:31]}  Ra6 {[%clk 0:00:29]} 34. Qd3 {[%clk 0:00:30]}  Rb6 {[%clk 0:00:27]} 35. h3 {[%clk 0:00:25]}  Ra6 {[%clk 0:00:27]} 36. g4 {[%clk 0:00:25]}  Ra8 {[%clk 0:00:26]} 37. Qf3 {[%clk 0:00:24]}  Ra4 {[%clk 0:00:26]} 38. Qb3 {[%clk 0:00:24]}  Qc6 {[%clk 0:00:26]} 39. Nd3 {[%clk 0:00:23]}  Bd6 {[%clk 0:00:25]} 40. Bd2 {[%clk 0:00:20]}  Ra8 {[%clk 0:00:24]} 41. Re1 {[%clk 0:00:17]}  Qf3 {[%clk 0:00:24]} 42. Nc1 {[%clk 0:00:15]}  Qxb3 {[%clk 0:00:23]} 43. Nxb3 {[%clk 0:00:16]}  Rxa3 {[%clk 0:00:24]} 44. Rb1 {[%clk 0:00:17]}  b6 {[%clk 0:00:22]} 45. Nc1 {[%clk 0:00:16]}  Bc7 {[%clk 0:00:22]} 46. Kg2 {[%clk 0:00:16]}  Ne4 {[%clk 0:00:22]} 47. Be1 {[%clk 0:00:16]}  Kg7 {[%clk 0:00:22]} 48. Rb3 {[%clk 0:00:14]}  Ra1 {[%clk 0:00:21]} 49. Nd3 {[%clk 0:00:14]}  Nd6 {[%clk 0:00:21]} 50. f4 {[%clk 0:00:07]}  Nxc4 {[%clk 0:00:20]} 51. fxg5 {[%clk 0:00:06]}  hxg5 {[%clk 0:00:21]} 52. Kf3 {[%clk 0:00:07]}  Rxe1 {[%clk 0:00:18]} 53. Nxe1 {[%clk 0:00:06]}  Nd2+ {[%clk 0:00:18]} 0-1


[Site "https://www.chess.com"]

[Event "Titled Tuesday Blitz September 13 Early 2022"]
[White "Korelskiy, Egor"]
[Black "Ter-Sahakyan, Samvel"]
[WhiteFideId "34329064"]
[BlackFideId "13302531"]
[WhiteElo "2071"]
[BlackElo "2604"]
[Result "0-1"]
[Round "02"]
[TimeControl "180+1"]
[Date "2022.09.13"]
[WhiteClock "0:01:43"]
[BlackClock "0:01:59"]

1. e4 {[%clk 0:03:00]}  c6 {[%clk 0:02:59]} 2. Nc3 {[%clk 0:03:00]}  d5 {[%clk 0:02:59]} 3. Nf3 {[%clk 0:03:01]}  Bg4 {[%clk 0:02:59]} 4. h3 {[%clk 0:03:00]}  Bxf3 {[%clk 0:02:59]} 5. Qxf3 {[%clk 0:03:01]}  e6 {[%clk 0:02:59]} 6. d3 {[%clk 0:03:01]}  Bb4 {[%clk 0:02:56]} 7. Bd2 {[%clk 0:03:01]}  Ne7 {[%clk 0:02:43]} 8. O-O-O {[%clk 0:03:00]}  d4 {[%clk 0:02:42]} 9. Nb1 {[%clk 0:02:57]}  a5 {[%clk 0:02:40]} 10. g4 {[%clk 0:02:52]}  Nd7 {[%clk 0:02:34]} 11. c3 {[%clk 0:02:51]}  Bc5 {[%clk 0:02:33]} 12. Bg2 {[%clk 0:02:39]}  O-O {[%clk 0:02:32]} 13. h4 {[%clk 0:02:38]}  b5 {[%clk 0:02:25]} 14. g5 {[%clk 0:02:37]}  dxc3 {[%clk 0:02:21]} 15. Bxc3 {[%clk 0:02:05]}  b4 {[%clk 0:02:21]} 16. Be1 {[%clk 0:02:03]}  Bd4 {[%clk 0:02:21]} 17. Nd2 {[%clk 0:01:59]}  c5 {[%clk 0:02:12]} 18. Nc4 {[%clk 0:01:57]}  Ne5 {[%clk 0:02:08]} 19. Nxe5 {[%clk 0:01:56]}  Bxe5 {[%clk 0:02:09]} 20. Bd2 {[%clk 0:01:50]}  Qd4 {[%clk 0:02:05]} 21. Rde1 {[%clk 0:01:45]}  Qxb2+ {[%clk 0:02:04]} 22. Kd1 {[%clk 0:01:46]}  Rfd8 {[%clk 0:02:04]} 23. Ke2 {[%clk 0:01:43]}  c4 {[%clk 0:01:59]} 0-1


[Site "https://www.chess.com"]

[Event "Titled Tuesday Blitz September 13 Early 2022"]
[White "Kucuksari, Kaan"]
[Black "Sadhwani, Raunak"]
[WhiteFideId "6380166"]
[BlackFideId "35093487"]
[WhiteElo "2305"]
[BlackElo "2656"]
[Result "0-1"]
[Round "02"]
[TimeControl "180+1"]
[Date "2022.09.13"]
[WhiteClock "0:00:02"]
[BlackClock "0:01:41"]

1. d4 {[%clk 0:03:00]}  Nf6 {[%clk 0:02:58]} 2. c4 {[%clk 0:03:00]}  d6 {[%clk 0:02:57]} 3. Nf3 {[%clk 0:02:58]}  Nbd7 {[%clk 0:02:57]} 4. Nc3 {[%clk 0:02:57]}  e5 {[%clk 0:02:58]} 5. e4 {[%clk 0:02:57]}  Be7 {[%clk 0:02:57]} 6. h3 {[%clk 0:02:42]}  O-O {[%clk 0:02:57]} 7. Be3 {[%clk 0:02:37]}  exd4 {[%clk 0:02:54]} 8. Nxd4 {[%clk 0:02:37]}  Nc5 {[%clk 0:02:54]} 9. Qc2 {[%clk 0:02:37]}  Re8 {[%clk 0:02:54]} 10. b4 {[%clk 0:02:35]}  Ne6 {[%clk 0:02:50]} 11. Nf5 {[%clk 0:02:19]}  Bf8 {[%clk 0:02:47]} 12. Bd3 {[%clk 0:02:14]}  a5 {[%clk 0:02:41]} 13. b5 {[%clk 0:02:11]}  g6 {[%clk 0:02:41]} 14. Ng3 {[%clk 0:01:58]}  Bg7 {[%clk 0:02:40]} 15. O-O {[%clk 0:01:55]}  Nd7 {[%clk 0:02:27]} 16. Be2 {[%clk 0:01:44]}  Nd4 {[%clk 0:02:26]} 17. Bxd4 {[%clk 0:01:26]}  Bxd4 {[%clk 0:02:27]} 18. Rad1 {[%clk 0:01:26]}  Bg7 {[%clk 0:02:28]} 19. f4 {[%clk 0:01:09]}  Nc5 {[%clk 0:02:23]} 20. Bf3 {[%clk 0:01:08]}  Be6 {[%clk 0:02:21]} 21. Nd5 {[%clk 0:01:07]}  c6 {[%clk 0:02:19]} 22. bxc6 {[%clk 0:01:03]}  bxc6 {[%clk 0:02:20]} 23. f5 {[%clk 0:00:55]}  Bd7 {[%clk 0:02:14]} 24. Ne3 {[%clk 0:00:25]}  Qg5 {[%clk 0:02:10]} 25. Qf2 {[%clk 0:00:26]}  Rab8 {[%clk 0:02:00]} 26. fxg6 {[%clk 0:00:22]}  fxg6 {[%clk 0:01:55]} 27. Rxd6 {[%clk 0:00:13]}  Be5 {[%clk 0:01:54]} 28. Rxd7 {[%clk 0:00:11]}  Bxg3 {[%clk 0:01:53]} 29. Qd2 {[%clk 0:00:08]}  Nxd7 {[%clk 0:01:52]} 30. Qxd7 {[%clk 0:00:07]}  Qxe3+ {[%clk 0:01:52]} 31. Kh1 {[%clk 0:00:08]}  Rf8 {[%clk 0:01:46]} 32. Qe6+ {[%clk 0:00:06]}  Kh8 {[%clk 0:01:47]} 33. Qxc6 {[%clk 0:00:06]}  Qd3 {[%clk 0:01:43]} 34. Rg1 {[%clk 0:00:03]}  Rb1 {[%clk 0:01:42]} 35. Bd1 {[%clk 0:00:02]}  Rxd1 {[%clk 0:01:41]} 0-1


[Site "https://www.chess.com"]

[Event "Titled Tuesday Blitz September 13 Early 2022"]
[White "Livaic, Leon"]
[Black "Kim, Sergey"]
[WhiteFideId "14531534"]
[BlackFideId "13700570"]
[WhiteElo "2540"]
[BlackElo "2568"]
[Result "1-0"]
[Round "02"]
[TimeControl "180+1"]
[Date "2022.09.13"]
[WhiteClock "0:00:50"]
[BlackClock "0:00:32"]

1. d4 {[%clk 0:03:00]}  Nf6 {[%clk 0:02:59]} 2. c4 {[%clk 0:03:00]}  g6 {[%clk 0:03:00]} 3. Nc3 {[%clk 0:02:59]}  Bg7 {[%clk 0:03:00]} 4. e4 {[%clk 0:02:59]}  d6 {[%clk 0:03:01]} 5. h3 {[%clk 0:03:00]}  O-O {[%clk 0:03:01]} 6. Be3 {[%clk 0:03:00]}  e5 {[%clk 0:03:02]} 7. d5 {[%clk 0:02:56]}  a5 {[%clk 0:03:02]} 8. g4 {[%clk 0:02:56]}  Na6 {[%clk 0:03:02]} 9. Nge2 {[%clk 0:02:56]}  Nc5 {[%clk 0:03:01]} 10. Ng3 {[%clk 0:02:57]}  Bd7 {[%clk 0:03:00]} 11. Qd2 {[%clk 0:02:56]}  a4 {[%clk 0:03:01]} 12. f3 {[%clk 0:02:56]}  c6 {[%clk 0:03:01]} 13. h4 {[%clk 0:02:55]}  cxd5 {[%clk 0:02:57]} 14. cxd5 {[%clk 0:02:56]}  Ne8 {[%clk 0:02:57]} 15. h5 {[%clk 0:02:56]}  Nc7 {[%clk 0:02:46]} 16. Qh2 {[%clk 0:02:42]}  g5 {[%clk 0:02:32]} 17. Qd2 {[%clk 0:02:29]}  h6 {[%clk 0:02:26]} 18. Kf2 {[%clk 0:02:27]}  b5 {[%clk 0:02:24]} 19. Rc1 {[%clk 0:02:24]}  b4 {[%clk 0:02:18]} 20. Nb1 {[%clk 0:02:17]}  Nb5 {[%clk 0:02:12]} 21. Bxb5 {[%clk 0:02:08]}  Bxb5 {[%clk 0:02:11]} 22. Bxc5 {[%clk 0:02:09]}  dxc5 {[%clk 0:02:12]} 23. Nf5 {[%clk 0:02:08]}  Rc8 {[%clk 0:02:00]} 24. a3 {[%clk 0:02:03]}  Bd7 {[%clk 0:01:42]} 25. Nxg7 {[%clk 0:01:56]}  Kxg7 {[%clk 0:01:42]} 26. axb4 {[%clk 0:01:57]}  Qb6 {[%clk 0:01:39]} 27. bxc5 {[%clk 0:01:43]}  Rxc5 {[%clk 0:01:39]} 28. Rxc5 {[%clk 0:01:43]}  Qxc5+ {[%clk 0:01:38]} 29. Kg3 {[%clk 0:01:37]}  Rb8 {[%clk 0:01:25]} 30. Rc1 {[%clk 0:01:32]}  Qb6 {[%clk 0:01:15]} 31. Na3 {[%clk 0:01:26]}  Qxb2 {[%clk 0:01:07]} 32. Qxb2 {[%clk 0:01:27]}  Rxb2 {[%clk 0:01:06]} 33. Nc4 {[%clk 0:01:26]}  Rb3 {[%clk 0:00:59]} 34. Nxe5 {[%clk 0:01:21]}  Bb5 {[%clk 0:00:59]} 35. d6 {[%clk 0:01:13]}  Rb2 {[%clk 0:00:52]} 36. Rc7 {[%clk 0:01:06]}  Kf6 {[%clk 0:00:47]} 37. d7 {[%clk 0:01:01]}  Rd2 {[%clk 0:00:45]} 38. Nc6 {[%clk 0:00:54]}  Bxc6 {[%clk 0:00:44]} 39. Rxc6+ {[%clk 0:00:55]}  Ke7 {[%clk 0:00:44]} 40. Rxh6 {[%clk 0:00:52]}  a3 {[%clk 0:00:44]} 41. Ra6 {[%clk 0:00:52]}  a2 {[%clk 0:00:42]} 42. Ra7 {[%clk 0:00:52]}  Kf6 {[%clk 0:00:35]} 43. Rxa2 {[%clk 0:00:50]}  Rxd7 {[%clk 0:00:34]} 44. Ra5 {[%clk 0:00:50]}  Rd3 {[%clk 0:00:32]} 45. Rf5+ {[%clk 0:00:50]} 1-0


[Site "https://www.chess.com"]

[Event "Titled Tuesday Blitz September 13 Early 2022"]
[White "Maltsevskaya, Aleksandra"]
[Black "Tari, Aryan"]
[WhiteFideId "24174041"]
[BlackFideId "1510045"]
[WhiteElo "2243"]
[BlackElo "2612"]
[Result "0-1"]
[Round "02"]
[TimeControl "180+1"]
[Date "2022.09.13"]
[WhiteClock "0:00:02"]
[BlackClock "0:00:10"]

1. e4 {[%clk 0:02:58]}  c6 {[%clk 0:02:59]} 2. d4 {[%clk 0:02:56]}  d5 {[%clk 0:02:59]} 3. exd5 {[%clk 0:02:56]}  cxd5 {[%clk 0:02:57]} 4. c4 {[%clk 0:02:56]}  Nf6 {[%clk 0:02:56]} 5. Nc3 {[%clk 0:02:57]}  e6 {[%clk 0:02:51]} 6. Nf3 {[%clk 0:02:56]}  Bb4 {[%clk 0:02:51]} 7. Bd3 {[%clk 0:02:47]}  dxc4 {[%clk 0:02:47]} 8. Bxc4 {[%clk 0:02:47]}  O-O {[%clk 0:02:47]} 9. O-O {[%clk 0:02:47]}  b6 {[%clk 0:02:47]} 10. Bg5 {[%clk 0:02:45]}  Bb7 {[%clk 0:02:44]} 11. Rc1 {[%clk 0:02:45]}  Nbd7 {[%clk 0:02:43]} 12. Qd3 {[%clk 0:02:40]}  Rc8 {[%clk 0:02:22]} 13. Ba6 {[%clk 0:02:35]}  Bxa6 {[%clk 0:02:09]} 14. Qxa6 {[%clk 0:02:36]}  Bxc3 {[%clk 0:02:09]} 15. bxc3 {[%clk 0:02:30]}  Qc7 {[%clk 0:02:08]} 16. c4 {[%clk 0:02:23]}  h6 {[%clk 0:01:56]} 17. Bd2 {[%clk 0:02:21]}  Nb8 {[%clk 0:01:49]} 18. Qa4 {[%clk 0:02:18]}  Rfd8 {[%clk 0:01:46]} 19. Rfd1 {[%clk 0:02:17]}  Ne4 {[%clk 0:01:34]} 20. Be3 {[%clk 0:02:14]}  Nd6 {[%clk 0:01:24]} 21. Bf4 {[%clk 0:02:08]}  Qb7 {[%clk 0:01:23]} 22. c5 {[%clk 0:02:06]}  Nf5 {[%clk 0:01:15]} 23. Bxb8 {[%clk 0:02:03]}  Qxb8 {[%clk 0:01:15]} 24. cxb6 {[%clk 0:00:55]}  Rxc1 {[%clk 0:01:06]} 25. Rxc1 {[%clk 0:00:54]}  Qxb6 {[%clk 0:01:07]} 26. Rd1 {[%clk 0:00:42]}  Rc8 {[%clk 0:01:01]} 27. h3 {[%clk 0:00:39]}  Ne7 {[%clk 0:00:46]} 28. Qa3 {[%clk 0:00:31]}  Nd5 {[%clk 0:00:45]} 29. Rc1 {[%clk 0:00:32]}  Rxc1+ {[%clk 0:00:39]} 30. Qxc1 {[%clk 0:00:33]}  Kh7 {[%clk 0:00:34]} 31. Ne5 {[%clk 0:00:24]}  f5 {[%clk 0:00:18]} 32. Nf3 {[%clk 0:00:21]}  Qb7 {[%clk 0:00:15]} 33. Qc5 {[%clk 0:00:20]}  Nf4 {[%clk 0:00:15]} 34. Kh2 {[%clk 0:00:13]}  Nd3 {[%clk 0:00:12]} 35. Qd6 {[%clk 0:00:12]}  Qe4 {[%clk 0:00:11]} 36. Kg1 {[%clk 0:00:10]}  Nc1 {[%clk 0:00:10]} 37. Ne5 {[%clk 0:00:09]}  Ne2+ {[%clk 0:00:10]} 38. Kh2 {[%clk 0:00:08]}  Nxd4 {[%clk 0:00:11]} 39. f3 {[%clk 0:00:03]}  Qf4+ {[%clk 0:00:10]} 40. Kh1 {[%clk 0:00:02]}  Qc1+ {[%clk 0:00:10]} 41. Kh2 {[%clk 0:00:02]}  Ne2 {[%clk 0:00:10]} 0-1


[Site "https://www.chess.com"]

[Event "Titled Tuesday Blitz September 13 Early 2022"]
[White "Moksh Amit Doshi"]
[Black "Jobava, Baadur"]
[WhiteFideId "25064967"]
[BlackFideId "13601520"]
[WhiteElo "2245"]
[BlackElo "2582"]
[Result "0-1"]
[Round "02"]
[TimeControl "180+1"]
[Date "2022.09.13"]
[WhiteClock "0:00:12"]
[BlackClock "0:02:05"]

1. d4 {[%clk 0:02:58]}  Nf6 {[%clk 0:02:58]} 2. c4 {[%clk 0:02:54]}  c5 {[%clk 0:02:58]} 3. d5 {[%clk 0:02:54]}  g6 {[%clk 0:02:58]} 4. Nc3 {[%clk 0:02:53]}  d6 {[%clk 0:02:59]} 5. e4 {[%clk 0:02:53]}  Bg7 {[%clk 0:02:59]} 6. h3 {[%clk 0:02:53]}  O-O {[%clk 0:02:59]} 7. Nf3 {[%clk 0:02:54]}  e6 {[%clk 0:03:00]} 8. Bd3 {[%clk 0:02:55]}  exd5 {[%clk 0:03:01]} 9. exd5 {[%clk 0:02:53]}  Re8+ {[%clk 0:03:01]} 10. Be3 {[%clk 0:02:53]}  Rxe3+ {[%clk 0:03:02]} 11. fxe3 {[%clk 0:02:54]}  Qe7 {[%clk 0:03:02]} 12. O-O {[%clk 0:02:47]}  Nbd7 {[%clk 0:03:01]} 13. Qd2 {[%clk 0:02:43]}  b6 {[%clk 0:03:00]} 14. Rae1 {[%clk 0:02:40]}  Ba6 {[%clk 0:03:01]} 15. Qf2 {[%clk 0:02:23]}  Rf8 {[%clk 0:02:58]} 16. e4 {[%clk 0:02:08]}  Nh5 {[%clk 0:02:53]} 17. Ne2 {[%clk 0:01:32]}  Bxb2 {[%clk 0:02:49]} 18. Ng3 {[%clk 0:01:30]}  Nxg3 {[%clk 0:02:43]} 19. Qxg3 {[%clk 0:01:31]}  Bg7 {[%clk 0:02:39]} 20. Qg5 {[%clk 0:01:24]}  Qxg5 {[%clk 0:02:38]} 21. Nxg5 {[%clk 0:01:25]}  Ne5 {[%clk 0:02:38]} 22. Be2 {[%clk 0:01:15]}  Bxc4 {[%clk 0:02:34]} 23. Nf3 {[%clk 0:01:10]}  Bxa2 {[%clk 0:02:26]} 24. Nd2 {[%clk 0:00:46]}  Bh6 {[%clk 0:02:25]} 25. Ra1 {[%clk 0:00:43]}  Bxd2 {[%clk 0:02:25]} 26. Rxa2 {[%clk 0:00:44]}  Be3+ {[%clk 0:02:26]} 27. Kh1 {[%clk 0:00:44]}  a5 {[%clk 0:02:26]} 28. Rb1 {[%clk 0:00:44]}  c4 {[%clk 0:02:26]} 29. Ra3 {[%clk 0:00:37]}  Bc5 {[%clk 0:02:26]} 30. Ra4 {[%clk 0:00:37]}  c3 {[%clk 0:02:20]} 31. Rc1 {[%clk 0:00:33]}  Bb4 {[%clk 0:02:20]} 32. Rc2 {[%clk 0:00:34]}  Kg7 {[%clk 0:02:17]} 33. Ra1 {[%clk 0:00:32]}  Nd7 {[%clk 0:02:16]} 34. Bf3 {[%clk 0:00:20]}  Kf6 {[%clk 0:02:15]} 35. Re1 {[%clk 0:00:20]}  Ke5 {[%clk 0:02:15]} 36. Bg4 {[%clk 0:00:17]}  Nc5 {[%clk 0:02:15]} 37. Bf3 {[%clk 0:00:17]}  Ra8 {[%clk 0:02:12]} 38. Rb1 {[%clk 0:00:14]}  h5 {[%clk 0:02:07]} 39. Re2 {[%clk 0:00:13]}  h4 {[%clk 0:02:08]} 40. Rf2 {[%clk 0:00:12]}  Ra7 {[%clk 0:02:05]} 41. Be2 {[%clk 0:00:12]}  Nxe4 {[%clk 0:02:05]} 0-1


[Site "https://www.chess.com"]

[Event "Titled Tuesday Blitz September 13 Early 2022"]
[White "Perera Alfonso, Rene Humberto"]
[Black "Neiksans, Arturs"]
[WhiteFideId "3514722"]
[BlackFideId "11601388"]
[WhiteElo "2313"]
[BlackElo "2463"]
[Result "1/2-1/2"]
[Round "02"]
[TimeControl "180+1"]
[Date "2022.09.13"]
[WhiteClock "0:00:06"]
[BlackClock "0:00:09"]

1. e4 {[%clk 0:03:00]}  c5 {[%clk 0:02:59]} 2. Nf3 {[%clk 0:02:59]}  e6 {[%clk 0:03:00]} 3. d4 {[%clk 0:02:59]}  cxd4 {[%clk 0:03:00]} 4. Nxd4 {[%clk 0:03:00]}  a6 {[%clk 0:03:00]} 5. Nc3 {[%clk 0:02:59]}  b5 {[%clk 0:03:00]} 6. g3 {[%clk 0:02:59]}  Bb7 {[%clk 0:02:59]} 7. Bg2 {[%clk 0:02:59]}  Nf6 {[%clk 0:02:59]} 8. Qe2 {[%clk 0:02:58]}  Nc6 {[%clk 0:02:55]} 9. Nb3 {[%clk 0:02:57]}  Qc7 {[%clk 0:02:35]} 10. O-O {[%clk 0:02:56]}  d6 {[%clk 0:02:22]} 11. f4 {[%clk 0:02:54]}  Be7 {[%clk 0:02:17]} 12. g4 {[%clk 0:02:54]}  g6 {[%clk 0:02:08]} 13. g5 {[%clk 0:02:50]}  Nd7 {[%clk 0:02:05]} 14. f5 {[%clk 0:02:50]}  Nde5 {[%clk 0:01:57]} 15. fxe6 {[%clk 0:02:38]}  fxe6 {[%clk 0:01:57]} 16. Bh3 {[%clk 0:02:33]}  Bc8 {[%clk 0:01:43]} 17. Be3 {[%clk 0:02:17]}  Bd7 {[%clk 0:01:43]} 18. Nd4 {[%clk 0:02:12]}  Nxd4 {[%clk 0:01:36]} 19. Bxd4 {[%clk 0:02:13]}  Bxg5 {[%clk 0:01:33]} 20. Qf2 {[%clk 0:01:52]}  Be7 {[%clk 0:01:29]} 21. Bxe5 {[%clk 0:01:52]}  dxe5 {[%clk 0:01:29]} 22. Qf7+ {[%clk 0:01:51]}  Kd8 {[%clk 0:01:29]} 23. Rad1 {[%clk 0:01:46]}  Qc5+ {[%clk 0:00:48]} 24. Kh1 {[%clk 0:01:19]}  Kc7 {[%clk 0:00:34]} 25. Rxd7+ {[%clk 0:00:46]}  Kxd7 {[%clk 0:00:33]} 26. Qxe6+ {[%clk 0:00:46]}  Kc7 {[%clk 0:00:27]} 27. Nd5+ {[%clk 0:00:46]}  Kb7 {[%clk 0:00:26]} 28. Qd7+ {[%clk 0:00:43]}  Kb8 {[%clk 0:00:25]} 29. Nxe7 {[%clk 0:00:42]}  Qc7 {[%clk 0:00:24]} 30. Qxc7+ {[%clk 0:00:24]}  Kxc7 {[%clk 0:00:24]} 31. Nd5+ {[%clk 0:00:25]}  Kd6 {[%clk 0:00:24]} 32. Rf6+ {[%clk 0:00:22]}  Kc5 {[%clk 0:00:24]} 33. c3 {[%clk 0:00:22]}  a5 {[%clk 0:00:22]} 34. Bf1 {[%clk 0:00:19]}  Rhf8 {[%clk 0:00:19]} 35. b4+ {[%clk 0:00:12]}  axb4 {[%clk 0:00:19]} 36. cxb4+ {[%clk 0:00:13]}  Kd4 {[%clk 0:00:20]} 37. Bxb5 {[%clk 0:00:13]}  Rxf6 {[%clk 0:00:19]} 38. Nxf6 {[%clk 0:00:14]}  Rxa2 {[%clk 0:00:19]} 39. Bc6 {[%clk 0:00:12]}  Rb2 {[%clk 0:00:18]} 40. b5 {[%clk 0:00:12]}  Ke3 {[%clk 0:00:17]} 41. h4 {[%clk 0:00:09]}  Kf3 {[%clk 0:00:16]} 42. Kg1 {[%clk 0:00:08]}  Rb1+ {[%clk 0:00:16]} 43. Kh2 {[%clk 0:00:08]}  Rb2+ {[%clk 0:00:17]} 44. Kg1 {[%clk 0:00:08]}  Rb1+ {[%clk 0:00:16]} 45. Kh2 {[%clk 0:00:08]}  h5 {[%clk 0:00:15]} 46. Nd5 {[%clk 0:00:06]}  Rb2+ {[%clk 0:00:14]} 47. Kg1 {[%clk 0:00:06]}  Rb1+ {[%clk 0:00:13]} 48. Kh2 {[%clk 0:00:06]}  Rb2+ {[%clk 0:00:13]} 49. Kg1 {[%clk 0:00:06]}  Kxe4 {[%clk 0:00:10]} 50. Ne7+ {[%clk 0:00:04]}  Kd4 {[%clk 0:00:09]} 51. Nxg6 {[%clk 0:00:04]}  e4 {[%clk 0:00:09]} 52. Nf4 {[%clk 0:00:04]}  e3 {[%clk 0:00:09]} 53. Kf1 {[%clk 0:00:05]}  Rb1+ {[%clk 0:00:07]} 54. Ke2 {[%clk 0:00:05]}  Rb2+ {[%clk 0:00:08]} 55. Ke1 {[%clk 0:00:05]}  Rb1+ {[%clk 0:00:08]} 56. Ke2 {[%clk 0:00:05]}  Rb2+ {[%clk 0:00:08]} 57. Ke1 {[%clk 0:00:06]}  Rb1+ {[%clk 0:00:09]} 58. Ke2 {[%clk 0:00:06]} 1/2-1/2


[Site "https://www.chess.com"]